fUST/lending_fUST_20260410
["ID","MTS","AMOUNT","RATE_DAILY","PERIOD"]
[420211858,1775784648808,-500.0,0.00018186,2]
[420211859,1775784648822,-500.0,0.00018186,2]
[420211861,1775784648832,-500.0,0.00018186,2]
[420211864,1775784648841,-500.0,0.00018186,2]
[420211866,1775784648857,-500.0,0.00018186,2]
[420211868,1775784648867,-500.0,0.00018186,2]
[420211869,1775784648875,-500.0,0.00018186,2]
[420211870,1775784648890,-500.0,0.00018186,2]
[420211871,1775784648901,-500.0,0.00018186,2]
[420211872,1775784648910,-500.0,0.00018186,2]
[420211873,1775784648918,-500.0,0.00018186,2]
[420211874,1775784648942,-500.0,0.00018186,2]
[420211875,1775784648952,-500.0,0.00018186,2]
[420211876,1775784648967,-500.0,0.00018186,2]
[420211877,1775784648980,-151.0,0.00018192,2]
[420211878,1775784649000,-86264.21904284,0.00019078,2]
[420211879,1775784649013,-673.32755196,0.00019078,2]
[420212157,1775785846042,-1000.0,0.00013699,2]
[420212159,1775785846054,-166.76450122,0.00013973,2]
[420212162,1775785846082,-500.0,0.0001555,2]
[420212164,1775785846092,-502.41332035,0.00016328,2]
[420212166,1775785846106,-1331.2279708,0.00016629,2]
[420212167,1775785846127,-295.2750122,0.00017194,2]
[420212169,1775785846137,-5059.54626913,0.00017282,2]
[420212171,1775785846146,-300.0,0.00017307,2]
[420212173,1775785846182,-372.38342023,0.00017308,2]
[420212175,1775785846197,-1489.53368091,0.00017308,2]
[420212177,1775785846212,-3351.45078205,0.00017308,2]
[420212179,1775785846229,-3312.89905878,0.00017308,2]
[420212182,1775785846260,-2645.23566486,0.00017308,2]
[420212184,1775785846281,-4749.90052753,0.00017308,2]
[420213074,1775786443440,-349.27346225,0.0001,2]
[420213075,1775786443500,-385.89958209,0.0001,2]
[420213076,1775786443575,-407.58167694,0.0001,2]
[420213077,1775786443616,-560.0,0.0001,2]
[420213078,1775786443654,-178.575,0.0001015,2]
[420213079,1775786443692,-154.35983283,0.0001015,2]
[420213080,1775786443722,-385.89958209,0.000103,2]
[420213081,1775786443768,-385.89958209,0.000106,2]
[420213082,1775786443797,-58.2098436,0.000106,2]
[420213083,1775786443816,-173.32990564,0.000106,2]
[420213084,1775786472600,-385.89958209,0.00011,2]
[420213085,1775786489291,-1000.0,0.00013699,2]
[420213086,1775786505996,-1865.69856189,0.00015621,2]
[420213087,1775786535180,-1000.0,0.00013699,2]
[420213119,1775787031977,-619.3283079,0.00013699,2]
[420213409,1775787038392,-380.6716921,0.00013699,2]
[420213410,1775787038417,-2693.98641627,0.0001484,2]
[420213411,1775787038430,-630.88825512,0.0001484,2]
[420213412,1775787038446,-2523.55302048,0.0001484,2]
[420213413,1775787038459,-5677.99429608,0.0001484,2]
[420213414,1775787038472,-300.0,0.00015509,2]
[420213415,1775787038492,-300.0,0.00015509,2]
[420213416,1775787038502,-194.0953458,0.0001551,2]
[420213417,1775787038513,-1002.4,0.000156,2]
[420213418,1775787038524,-614.8772914,0.00015621,2]
[420213419,1775787038533,-2459.50916561,0.00015621,2]
[420213420,1775787038543,-5528.36172699,0.00015621,2]
[420213421,1775787038554,-741.74914924,0.00015621,2]
[420213422,1775787038564,-2964.02960035,0.00015621,2]
[420213423,1775787038574,-5120.94313044,0.0001607,2]
[420213424,1775787038589,-2760.49788086,0.0001607,2]
[420213425,1775787038598,-15380.3736,0.0001634,2]
[420213426,1775787038616,-705.16399148,0.00016343,2]
[420213427,1775787038626,-420.0,0.00016965,2]
[420213428,1775787038636,-1000.0,0.00017151,2]
[420213429,1775787038650,-160.604,0.00017194,2]
[420213430,1775787038661,-459.00508501,0.00017282,2]
[420213431,1775787038676,-1834.18431972,0.00017282,2]
[420213432,1775787038686,-191.56522013,0.00017282,2]
[420213433,1775787038695,-765.49461965,0.00017282,2]
[420213434,1775787038708,-705.16399144,0.00017633,2]
[420213435,1775787038719,-504.54,0.00017792,3]
[420213436,1775787038730,-252.27,0.00017792,3]
[420213437,1775787038748,-756.86,0.00017792,3]
[420213438,1775787038758,-500.0,0.00017801,2]
[420213439,1775787038767,-500.0,0.00017801,2]
[420213440,1775787038786,-510.13849363,0.00017801,2]
[420213441,1775787038796,-500.0,0.00017801,2]
[420213442,1775787038818,-249.15163198,0.00017801,2]
[420213443,1775787038831,-250.84836802,0.00017801,2]
[420213444,1775787038850,-304.41041494,0.00017801,2]
[420213474,1775787043254,-425.67463478,0.000178,2]
[420213476,1775787043280,-500.0,0.000178,2]
[420213478,1775787043314,-500.0,0.000178,2]
[420213479,1775787043325,-500.0,0.000178,2]
[420213481,1775787043340,-500.0,0.000178,2]
[420213482,1775787043368,-500.0,0.000178,2]
[420213483,1775787043379,-363.01933178,0.000178,2]
[420213484,1775787043454,-500.0,0.000178,2]
[420213485,1775787043543,-500.0,0.000178,2]
[420213487,1775787043566,-500.0,0.000178,2]
[420213490,1775787043577,-442.5081302,0.000178,2]
[420213493,1775787043586,-500.0,0.000178,2]
[420213495,1775787043607,-500.0,0.000178,2]
[420213496,1775787043616,-195.58958506,0.00017801,2]
[420213497,1775787043625,-500.0,0.00017801,2]
[420213498,1775787043635,-500.0,0.00017801,2]
[420213499,1775787043648,-500.0,0.00017801,2]
[420213500,1775787043658,-500.0,0.00017801,2]
[420213501,1775787043675,-500.0,0.00017801,2]
[420213502,1775787043684,-500.0,0.00017801,2]
[420213503,1775787043693,-276.64781208,0.00017801,2]
[420213505,1775787046181,-223.35218792,0.00017801,2]
[420213506,1775787046191,-500.0,0.00017801,2]
[420213507,1775787046202,-117.0641231,0.00017801,2]
[420213508,1775787046230,-382.9358769,0.00017801,2]
[420213509,1775787046241,-500.0,0.00017801,2]
[420213510,1775787046256,-500.0,0.00017801,2]
[420213511,1775787046266,-500.0,0.00017801,2]
[420213512,1775787046275,-500.0,0.00017801,2]
[420213513,1775787046292,-500.0,0.00017801,2]
[420213514,1775787046303,-500.0,0.00017801,2]
[420213515,1775787046313,-500.0,0.00017801,2]
[420213516,1775787046323,-458.91995996,0.00017801,2]
[420213517,1775787046334,-500.0,0.00017801,2]
[420213518,1775787046344,-500.0,0.00017801,2]
[420213519,1775787046354,-500.0,0.00017801,2]
[420213520,1775787046363,-500.0,0.00017801,2]
[420213521,1775787046380,-500.0,0.00017801,2]
[420213522,1775787046389,-500.0,0.00017801,2]
[420213523,1775787046399,-500.0,0.00017801,2]
[420213524,1775787046409,-500.0,0.00017801,2]
[420213525,1775787046426,-500.0,0.00017801,2]
[420213526,1775787046437,-500.0,0.00017801,2]
[420213527,1775787046455,-500.0,0.00017801,2]
[420213528,1775787046465,-500.0,0.00017801,2]
[420213529,1775787046478,-500.0,0.00017801,2]
[420213530,1775787046496,-500.0,0.00017801,2]
[420213531,1775787046527,-500.0,0.00017801,2]
[420213532,1775787046538,-500.0,0.00017801,2]
[420213533,1775787046555,-500.0,0.00017801,2]
[420213534,1775787046576,-500.0,0.00017801,2]
[420213535,1775787046594,-500.0,0.00017801,2]
[420213536,1775787046620,-267.83928665,0.00017801,2]
[420213537,1775787046645,-500.0,0.00017801,2]
[420213538,1775787046657,-500.0,0.00017801,2]
[420213539,1775787046674,-500.0,0.00017801,2]
[420213540,1775787046687,-500.0,0.00017801,2]
[420213541,1775787046713,-500.0,0.00017801,2]
[420213542,1775787046736,-500.0,0.00017801,2]
[420213543,1775787046749,-566.62786853,0.00017801,2]
[420213544,1775787046767,-988.49863685,0.00017801,2]
[420213545,1775787046778,-500.0,0.00017801,2]
[420213546,1775787046803,-500.0,0.00017801,2]
[420213547,1775787046813,-988.49863685,0.00017801,2]
[420213548,1775787046825,-988.49863685,0.00017801,2]
[420213549,1775787046840,-500.0,0.00017801,2]
[420213550,1775787046853,-500.0,0.00017801,2]
[420213551,1775787046865,-988.49863685,0.00017801,2]
[420213552,1775787046882,-988.49863685,0.00017801,2]
[420213553,1775787046901,-500.0,0.00017801,2]
[420213554,1775787046910,-988.49863685,0.00017801,2]
[420213555,1775787046926,-988.49863685,0.00017801,2]
[420213556,1775787046940,-988.49863685,0.00017801,2]
[420213557,1775787046948,-604.5908148,0.00017801,2]
[420213558,1775787046981,-383.90782205,0.00017801,2]
[420213559,1775787046992,-500.0,0.00017801,2]
[420213560,1775787047003,-988.49863685,0.00017801,2]
[420213561,1775787047013,-500.0,0.00017801,2]
[420213562,1775787047030,-988.49863685,0.00017801,2]
[420213563,1775787047054,-409.49696068,0.00017801,2]
[420213564,1775787191699,1706.0,9.001e-05,2]
[420213645,1775788232398,-1000.0,0.00013699,2]
[420213646,1775788232419,-615.0,0.00013699,2]
[420213647,1775788232443,-1819.01103467,0.00014175,2]
[420213648,1775788232462,-1200.0,0.00016342,2]
[420213649,1775788232484,-300.0,0.00016342,2]
[420213650,1775788232498,-65.98896533,0.00016343,2]
[420213658,1775788238754,-959.71502502,0.00016343,2]
[420213667,1775788241144,-2574.9187217,0.00016343,2]
[420213761,1775788243463,-6949.84882375,0.00016343,2]
[420213762,1775788243474,-291.8175962,0.00016378,2]
[420213776,1775788243659,-21.1444838,0.00016378,2]
[420213778,1775788243669,-1061.1138282,0.00016969,2]
[420213780,1775788243679,-5782.96486056,0.00017215,2]
[420213782,1775788243707,-3232.7265385,0.00017215,2]
[420213800,1775788246606,-984.30860094,0.00017215,2]
[420213801,1775788246649,-160.605,0.00017282,2]
[420213802,1775788246702,-874.36483972,0.000177,2]
[420213803,1775788246727,-658.07593052,0.00017799,2]
[420213804,1775788246746,-658.07593052,0.00017799,2]
[420213805,1775788246763,-763.3905525,0.00017801,2]
[420213807,1775788246786,-653.5261178,0.00017801,2]
[420213809,1775788246795,-944.25985633,0.00017801,2]
[420213811,1775788246818,-18929.90703527,0.00017801,2]
[420213812,1775788246827,-5439.04196847,0.00017801,2]
[420213902,1775789432574,-168.01799941,0.00012514,2]
[420213904,1775789432592,-597.0,0.00012514,2]
[420213906,1775789432613,-156.0,0.00013699,2]
[420213908,1775789432624,-1000.0,0.00013699,2]
[420213910,1775789432672,-615.86954096,0.00014175,2]
[420213911,1775789432683,-185.8915853,0.00015642,2]
[420213913,1775789432699,-249.98804439,0.00016065,2]
[420213915,1775789432718,-1000.0,0.00016253,2]
[420213917,1775789432731,-300.0,0.0001691,2]
[420213919,1775789432740,-1200.0,0.0001691,2]
[420213921,1775789432769,-300.0,0.0001691,2]
[420213923,1775789432778,-300.0,0.0001691,2]
[420213926,1775789432801,-300.0,0.0001691,2]
[420213928,1775789432811,-531.48628248,0.00016911,2]
[420213930,1775789432821,-2125.94512993,0.00016911,2]
[420213931,1775789432835,-1565.90772251,0.00016911,2]
[420213935,1775789432862,-1297.01723482,0.00016911,2]
[420213937,1775789432881,-1915.66820847,0.00016911,2]
[420213939,1775789432894,-5263.52585594,0.00017284,2]
[420214023,1775789438727,-527.18973794,0.00015554,2]
[420214024,1775789438828,-798.38579127,0.00015554,2]
[420214025,1775789438841,-2778.94720949,0.00015554,2]
[420214026,1775789438860,-1953.76650296,0.00017284,2]
[420214027,1775789438889,-5219.172489,0.00017578,2]
[420214028,1775789438898,-159.29848055,0.000176,2]
[420214029,1775789438911,-2150.738,0.00017689,2]
[420214030,1775789438930,-537.6845,0.00017689,2]
[420214031,1775789438941,-300.0,0.00017698,2]
[420214032,1775789438963,-11717.40946877,0.000177,2]
[420214039,1775789441177,-800.11562163,0.000177,2]
[420214040,1775789441188,-681.0,0.000177,2]
[420214041,1775789441197,-557.5788265,0.00017744,2]
[420214042,1775789441207,-231.5633153,0.0001779,2]
[420214043,1775789441216,-537.6845,0.0001779,2]
[420214044,1775789441228,-578.20924308,0.00017799,2]
[420214045,1775789441238,-160.0,0.000178,2]
[420214046,1775789441247,-160.0,0.000178,2]
[420214047,1775789441257,-198.878,0.000178,2]
[420214048,1775789441271,-188.62692637,0.000178,2]
[420214049,1775789441281,-1000.0,0.00017801,2]
[420214050,1775789441290,-1000.0,0.00017801,2]
[420214051,1775789441299,-1000.0,0.00017801,2]
[420214052,1775789441314,-343.92158714,0.00017801,2]
[420214053,1775789441323,-151.0,0.00017801,2]
[420214054,1775789441333,-151.0,0.00017801,2]
[420214055,1775789441342,-151.0,0.00017801,2]
[420214056,1775789441356,-151.0,0.00017801,2]
[420214057,1775789441366,-151.0,0.00017801,2]
[420214058,1775789441376,-151.0,0.00017801,2]
[420214059,1775789441385,-151.0,0.00017801,2]
[420214060,1775789441398,-151.0,0.00017801,2]
[420214061,1775789441409,-151.0,0.00017801,2]
[420214062,1775789441419,-151.0,0.00017801,2]
[420214063,1775789441431,-151.68053369,0.00017801,2]
[420214064,1775789441441,-262.662034,0.00017808,2]
[420214065,1775789441455,-599.60298507,0.00017854,2]
[420214066,1775789441464,-157.06818071,0.0001788,2]
[420214067,1775789441481,-621.78829552,0.00017909,2]
[420214068,1775789441491,-138.74062598,0.00017917,3]
[420214082,1775789446493,-381.52647412,0.00017917,3]
[420214084,1775789446547,-130.9728999,0.00017917,3]
[420214086,1775789446559,-500.0,0.00017925,2]
[420214088,1775789446583,-297.97224434,0.00017925,2]
[420214090,1775789446594,-500.0,0.00017925,2]
[420214093,1775789446610,-500.0,0.00017925,2]
[420214094,1775789446630,-500.0,0.00017925,2]
[420214096,1775789446641,-500.0,0.00017925,2]
[420214099,1775789446663,-500.0,0.00017925,2]
[420214101,1775789446673,-500.0,0.00017925,2]
[420214102,1775789446692,-500.0,0.00017925,2]
[420214104,1775789446724,-500.0,0.00017925,2]
[420214105,1775789446734,-500.0,0.00017925,2]
[420214106,1775789446753,-500.0,0.00017925,2]
[420214107,1775789446768,-500.0,0.00017925,2]
[420214108,1775789446778,-500.0,0.00017925,2]
[420214109,1775789446796,-500.0,0.00017925,2]
[420214110,1775789446812,-500.0,0.00017925,2]
[420214111,1775789446821,-500.0,0.00017925,2]
[420214112,1775789446837,-500.0,0.00017925,2]
[420214113,1775789446853,-500.0,0.00017925,2]
[420214114,1775789446876,-378.66576718,0.00017925,2]
[420214115,1775789446885,-500.0,0.00017925,2]
[420214116,1775789446896,-500.0,0.00017925,2]
[420214117,1775789446906,-500.0,0.00017925,2]
[420214118,1775789446916,-500.0,0.00017925,2]
[420214119,1775789446929,-500.0,0.00017925,2]
[420214120,1775789446939,-500.0,0.00017925,2]
[420214121,1775789446948,-500.0,0.00017925,2]
[420214122,1775789446960,-500.0,0.00017925,2]
[420214123,1775789446971,-500.0,0.00017925,2]
[420214124,1775789446981,-500.0,0.00017925,2]
[420214125,1775789446994,-500.0,0.00017925,2]
[420214126,1775789447003,-500.0,0.00017925,2]
[420214127,1775789447014,-500.0,0.00017925,2]
[420214128,1775789447024,-500.0,0.00017925,2]
[420214129,1775789447036,-500.0,0.00017925,2]
[420214130,1775789447047,-500.0,0.00017925,2]
[420214131,1775789447059,-500.0,0.00017925,2]
[420214132,1775789447069,-500.0,0.00017925,2]
[420214133,1775789447082,-500.0,0.00017925,2]
[420214134,1775789447092,-500.0,0.00017925,2]
[420214135,1775789447106,-500.0,0.00017925,2]
[420214136,1775789447116,-500.0,0.00017925,2]
[420214137,1775789447134,-500.0,0.00017925,2]
[420214138,1775789447146,-500.0,0.00017925,2]
[420214139,1775789447166,-500.0,0.00017925,2]
[420214140,1775789447176,-500.0,0.00017925,2]
[420214141,1775789447208,-410.7935854,0.00017925,2]
[420214142,1775789447218,-500.0,0.00017925,2]
[420214143,1775789447249,-500.0,0.00017925,2]
[420214144,1775789447262,-500.0,0.00017925,2]
[420214145,1775789447276,-39390.71622511,0.00017927,2]
[420214146,1775789447307,-11345.53611159,0.00017927,2]
[420214147,1775789447332,-448182.11035257,0.00017927,2]
[420214148,1775789447830,-499.48143251,0.00017927,2]
[420214149,1775789447893,-775.45110368,0.00017927,2]
[420214209,1775790096151,3588.49967905,7.6e-05,2]
[420214210,1775790112593,801.16310667,5e-05,2]
[420214254,1775790632880,-300.0,0.00012998,2]
[420214256,1775790632890,-234.45157232,0.00012998,2]
[420214258,1775790632903,-65.54842768,0.00012998,2]
[420214260,1775790632934,-300.0,0.00012998,2]
[420214262,1775790632944,-50.01979512,0.00012998,2]
[420214301,1775790633548,-249.98020488,0.00012998,2]
[420214303,1775790633559,-300.0,0.00012998,2]
[420214305,1775790633584,-604.0,0.00012998,2]
[420214307,1775790633594,-1200.0,0.00012999,2]
[420214309,1775790633609,-3345.45157232,0.00013,2]
[420214338,1775790638911,-638.78276654,0.00013,2]
[420214339,1775790638939,-1000.0,0.00013,2]
[420214450,1775790646826,-479.84473846,0.00013,2]
[420214451,1775790646843,-3372.87092268,0.00013,2]
[420214452,1775790646859,-1000.0,0.00013699,2]
[420214453,1775790646868,-420.0,0.00014255,2]
[420214454,1775790646878,-420.0,0.00014255,2]
[420214455,1775790646894,-420.0,0.00014255,2]
[420214456,1775790646914,-420.0,0.00014255,2]
[420214457,1775790646923,-1680.0,0.00014299,2]
[420214458,1775790646932,-485.0,0.00015632,2]
[420214459,1775790646943,-183.0,0.00015632,2]
[420214460,1775790646962,-587.0,0.00015632,2]
[420214461,1775790646973,-186.0,0.00015632,2]
[420214462,1775790646983,-455.0,0.00015729,2]
[420214463,1775790647002,-312.96208,0.00015785,2]
[420214464,1775790647013,-400.0,0.000161,2]
[420214465,1775790647023,-10000.0,0.00016926,2]
[420214466,1775790647044,-192.9866009,0.00017063,2]
[420214467,1775790647055,-760.0,0.00017144,2]
[420214468,1775790647086,-537.6845,0.00017169,2]
[420214469,1775790647096,-2150.738,0.00017169,2]
[420214470,1775790647126,-557.5788265,0.00017224,2]
[420214471,1775790647138,-455.4746423,0.00017278,2]
[420214473,1775790647178,-578.20924308,0.00017279,2]
[420214475,1775790647194,-599.60298507,0.00017334,2]
[420214476,1775790647210,-621.78829552,0.00017389,2]
[420214478,1775790647226,-644.79446246,0.00017444,2]
[420214479,1775790647244,-668.65185757,0.00017499,2]
[420214481,1775790647279,-693.3919763,0.00017554,2]
[420214483,1775790647300,-719.04747942,0.00017609,2]
[420214484,1775790647318,-745.65223616,0.00017664,2]
[420214485,1775790647355,-2230.315306,0.00017717,2]
[420214486,1775790647364,-773.2413689,0.00017719,2]
[420214487,1775790647417,-801.85129955,0.00017774,2]
[420214488,1775790647431,-159.0,0.000178,2]
[420214489,1775790647446,-188.443,0.000178,2]
[420214490,1775790647460,-500.0,0.00017825,2]
[420214491,1775790647471,-500.0,0.00017825,2]
[420214492,1775790647481,-500.0,0.00017825,2]
[420214493,1775790647492,-500.0,0.00017825,2]
[420214494,1775790647512,-500.0,0.00017825,2]
[420214495,1775790647522,-500.0,0.00017825,2]
[420214496,1775790647537,-500.0,0.00017825,2]
[420214497,1775790647558,-500.0,0.00017825,2]
[420214498,1775790647568,-500.0,0.00017825,2]
[420214499,1775790647581,-500.0,0.00017825,2]
[420214500,1775790647596,-500.0,0.00017825,2]
[420214501,1775790647606,-500.0,0.00017825,2]
[420214502,1775790647619,-500.0,0.00017825,2]
[420214503,1775790647629,-500.0,0.00017825,2]
[420214504,1775790647643,-500.0,0.00017825,2]
[420214505,1775790647652,-500.0,0.00017825,2]
[420214506,1775790647666,-500.0,0.00017825,2]
[420214507,1775790647675,-500.0,0.00017825,2]
[420214508,1775790647689,-500.0,0.00017825,2]
[420214509,1775790647701,-500.0,0.00017825,2]
[420214510,1775790647712,-500.0,0.00017825,2]
[420214511,1775790647722,-500.0,0.00017825,2]
[420214512,1775790647735,-500.0,0.00017825,2]
[420214513,1775790647748,-500.0,0.00017825,2]
[420214514,1775790647759,-500.0,0.00017825,2]
[420214515,1775790647769,-500.0,0.00017825,2]
[420214516,1775790647785,-500.0,0.00017825,2]
[420214517,1775790647798,-500.0,0.00017825,2]
[420214518,1775790647823,-500.0,0.00017825,2]
[420214519,1775790647833,-500.0,0.00017825,2]
[420214520,1775790647846,-500.0,0.00017825,2]
[420214521,1775790647863,-500.0,0.00017825,2]
[420214522,1775790647872,-500.0,0.00017825,2]
[420214523,1775790647884,-500.0,0.00017825,2]
[420214524,1775790647897,-500.0,0.00017825,2]
[420214525,1775790647910,-500.0,0.00017825,2]
[420214526,1775790647919,-500.0,0.00017825,2]
[420214527,1775790647941,-500.0,0.00017825,2]
[420214528,1775790647954,-500.0,0.00017825,2]
[420214529,1775790647969,-500.0,0.00017825,2]
[420214530,1775790647991,-500.0,0.00017825,2]
[420214531,1775790648001,-500.0,0.00017825,2]
[420214532,1775790648039,-500.0,0.00017825,2]
[420214533,1775790648050,-500.0,0.00017825,2]
[420214534,1775790648065,-500.0,0.00017825,2]
[420214535,1775790648087,-500.0,0.00017825,2]
[420214536,1775790648103,-622.19727582,0.00017825,2]
[420214537,1775790648141,-500.0,0.00017825,2]
[420214538,1775790648151,-500.0,0.00017825,2]
[420214539,1775790648160,-500.0,0.00017825,2]
[420214540,1775790648186,-500.0,0.00017825,2]
[420214541,1775790648196,-500.0,0.00017825,2]
[420214542,1775790648206,-495.85848137,0.00017825,2]
[420214543,1775790648218,-500.0,0.00017825,2]
[420214544,1775790648237,-500.0,0.00017825,2]
[420214545,1775790648255,-500.0,0.00017825,2]
[420214546,1775790648265,-500.0,0.00017825,2]
[420214547,1775790648289,-500.0,0.00017825,2]
[420214548,1775790648299,-500.0,0.00017825,2]
[420214549,1775790648316,-500.0,0.00017825,2]
[420214550,1775790648330,-500.0,0.00017825,2]
[420214551,1775790648340,-500.0,0.00017825,2]
[420214552,1775790648350,-500.0,0.00017825,2]
[420214553,1775790648370,-500.0,0.00017825,2]
[420214554,1775790648390,-500.0,0.00017825,2]
[420214555,1775790648401,-500.0,0.00017825,2]
[420214556,1775790648411,-500.0,0.00017825,2]
[420214557,1775790648429,-10958.44860972,0.00017826,2]
[420214558,1775790648439,-537.6845,0.00017916,2]
[420214559,1775790648449,-250.0,0.00017918,7]
[420214560,1775790648473,-372.48582209,0.00017925,2]
[420214561,1775790648484,-200.51867108,0.00017925,2]
[420214562,1775790648493,-300.25802181,0.00017925,2]
[420214563,1775790648503,-1374.31066223,0.00017925,2]
[420214564,1775790648516,-574.55116239,0.00017926,2]
[420214565,1775790648526,-500.0,0.00017926,2]
[420214566,1775790648536,-500.0,0.00017926,2]
[420214567,1775790648546,-517.37254963,0.00017926,2]
[420214568,1775790648559,-500.0,0.00017926,2]
[420214569,1775790648569,-500.0,0.00017926,2]
[420214570,1775790648578,-422.62727874,0.00017926,2]
[420214571,1775790648592,-500.0,0.00017926,2]
[420214572,1775790648602,-500.0,0.00017926,2]
[420214573,1775790648611,-500.0,0.00017926,2]
[420214574,1775790648621,-500.0,0.00017926,2]
[420214575,1775790648634,-500.0,0.00017926,2]
[420214576,1775790648645,-500.0,0.00017926,2]
[420214577,1775790648654,-500.0,0.00017926,2]
[420214578,1775790648663,-500.0,0.00017926,2]
[420214579,1775790648673,-617.86051137,0.00017926,2]
[420214580,1775790648688,-500.0,0.00017926,2]
[420214581,1775790648698,-500.0,0.00017926,2]
[420214582,1775790648709,-500.0,0.00017926,2]
[420214583,1775790648728,-500.0,0.00017926,2]
[420214584,1775790648747,-500.0,0.00017926,2]
[420214585,1775790648760,-500.0,0.00017926,2]
[420214586,1775790648773,-581.12592603,0.00017926,2]
[420214587,1775790648793,-500.0,0.00017926,2]
[420214588,1775790648804,-382.50235796,0.00017926,2]
[420214589,1775790648816,-500.0,0.00017926,2]
[420214590,1775790649020,-500.0,0.00017926,2]
[420214591,1775790649041,-100.73901611,0.00017926,2]
[420214592,1775790649054,-399.26098389,0.00017926,2]
[420214593,1775790649070,-500.0,0.00017926,2]
[420214594,1775790649086,-500.0,0.00017926,2]
[420214595,1775790649095,-500.0,0.00017926,2]
[420214596,1775790649111,-9193.4174642,0.00017927,2]
[420214597,1775790649124,-6743.07026507,0.00017927,2]
[420214746,1775791832285,-1000.0,0.00013699,2]
[420214748,1775791832301,-575.65339411,0.0001701,2]
[420214750,1775791832310,-679.3908727,0.00017025,2]
[420214752,1775791832321,-500.0,0.00017824,2]
[420214754,1775791832332,-500.0,0.00017824,2]
[420214756,1775791832343,-179.47723848,0.00017824,2]
[420214758,1775791832352,-300.0,0.00017883,2]
[420214760,1775791832366,-300.0,0.00017883,2]
[420214762,1775791832384,-1200.0,0.00017883,2]
[420214764,1775791832393,-2150.738,0.00017884,2]
[420214766,1775791832406,-337.83162809,0.00017884,2]
[420214768,1775791832416,-1969.723428,0.00017895,2]
[420214770,1775791832433,-5297.3360042,0.00017895,2]
[420214772,1775791832446,-4878.9606634,0.00017895,2]
[420214774,1775791832457,-250.0,0.00017918,7]
[420214776,1775791832471,-1489.94328837,0.00017925,2]
[420214778,1775791832482,-927.12016948,0.00017925,2]
[420214779,1775791832494,-899.0,0.00017927,2]
[420214781,1775791832506,-231.0,0.00017927,2]
[420214783,1775791832522,-4984.0,0.00017927,2]
[420214785,1775791832535,-1010.53,0.00018,3]
[420214787,1775791832546,-421.3397027,0.00018042,2]
[420214789,1775791832563,-510.28,0.00018042,2]
[420214791,1775791832576,-2129.59374848,0.00018048,2]
[420214793,1775791832588,-1091.95880537,0.00018048,2]
[420214795,1775791832597,-1082.18999814,0.00018048,2]
[420214797,1775791832610,-188.443,0.00018048,2]
[420214799,1775791832623,-2636.16315191,0.000183,4]
[420214801,1775791832635,-399.0,0.000183,2]
[420214803,1775791832645,-2241.90835923,0.00018318,2]
[420214920,1775791846146,-2977.26412977,0.00018318,2]
[420214922,1775791846165,-151.5,0.00018424,2]
[420214924,1775791846186,-295.02086512,0.00018424,2]
[420214925,1775791846218,-159.15715491,0.00018424,2]
[420214927,1775791846238,-150.20403676,0.00018424,2]
[420214930,1775791846249,-737.03117406,0.00018432,2]
[420214961,1775791847529,-1493.28413194,0.00018432,2]
[420214962,1775791847551,-181.25269977,0.0001848,2]
[420214963,1775791847565,-537.6845,0.00018688,2]
[420214964,1775791847576,-426.77866829,0.00018695,2]